fUST/lending_fUST_20241129
["ID","MTS","AMOUNT","RATE_DAILY","PERIOD"]
[343669708,1732821038581,-500.00228775,0.00029877,2]
[343669709,1732821038594,-347.86371402,0.00029877,2]
[343669710,1732821038604,-3862.94512727,0.00029878,2]
[343669711,1732821038613,-2046.06958606,0.00030074,2]
[343669712,1732821038628,-393.53,0.000301,31]
[343669713,1732821038637,-393.53,0.000301,31]
[343669714,1732821038647,-393.53,0.000301,31]
[343669715,1732821038656,-393.53,0.000301,31]
[343669716,1732821038665,-393.53,0.000301,31]
[343669717,1732821038675,-393.53,0.000301,31]
[343669718,1732821038684,-393.53,0.000301,31]
[343669719,1732821038694,-393.53,0.000301,31]
[343669720,1732821038703,-393.53,0.000301,31]
[343669721,1732821038712,-393.53,0.000301,31]
[343669722,1732821038722,-393.53,0.000301,31]
[343669723,1732821038732,-393.53,0.000301,31]
[343669724,1732821038743,-228.0,0.00030119,2]
[343669725,1732821038752,-1702.03302932,0.00030119,2]
[343669726,1732821038761,-160.0,0.00030134,4]
[343669727,1732821038771,-1983.627701,0.00030137,120]
[343669728,1732821038781,-164.71207177,0.00030137,2]
[343669729,1732821038790,-1076.59,0.0003021,10]
[343669730,1732821038800,-1479.61,0.0003021,10]
[343669731,1732821038809,-439.85,0.0003021,3]
[343669732,1732821038819,-1233.01,0.0003021,10]
[343669733,1732821038828,-1027.51,0.0003021,10]
[343669734,1732821038837,-500.0,0.00030218,2]
[343669735,1732821038848,-258.97512448,0.00030218,2]
[343669736,1732821038861,-271.27075898,0.00030218,2]
[343669737,1732821038872,-268.19614602,0.00030218,2]
[343669738,1732821038883,-500.0,0.00030218,2]
[343669739,1732821038892,-440.96822346,0.00030218,2]
[343669740,1732821038901,-389.22160855,0.00030218,2]
[343669741,1732821038911,-500.0,0.00030218,2]
[343669742,1732821038922,-366.2821597,0.00030218,2]
[343669743,1732821038932,-151.0,0.00030219,7]
[343669744,1732821038942,-151.0,0.00030219,7]
[343669745,1732821038952,-155.85624,0.00030219,7]
[343669746,1732821038963,-151.0,0.00030219,7]
[343669747,1732821038973,-153.522095,0.00030219,7]
[343669748,1732821038984,-151.0,0.00030219,7]
[343669749,1732821038995,-151.0,0.00030219,7]
[343669750,1732821039004,-151.0,0.00030219,7]
[343669751,1732821039014,-151.0,0.00030219,7]
[343669752,1732821039023,-151.0,0.00030219,7]
[343669753,1732821039035,-151.0,0.00030219,7]
[343669754,1732821039045,-151.0,0.00030219,7]
[343669755,1732821039054,-151.0,0.00030219,7]
[343669756,1732821039065,-151.0,0.00030219,7]
[343669757,1732821039074,-151.0,0.00030219,7]
[343669758,1732821039084,-291.728912,0.00030219,7]
[343669759,1732821039093,-151.0,0.00030219,7]
[343669760,1732821039102,-151.0,0.00030219,7]
[343669761,1732821039112,-153.872989,0.00030219,7]
[343669762,1732821039123,-151.0,0.00030219,7]
[343669763,1732821039132,-151.0,0.00030219,7]
[343669764,1732821039142,-152.132492,0.00030219,7]
[343669765,1732821039151,-238.33348,0.00030219,7]
[343669766,1732821039161,-238.33348,0.00030219,7]
[343669767,1732821039170,-238.33348,0.00030219,7]
[343669768,1732821039180,-238.33348,0.00030219,7]
[343669769,1732821039189,-238.33348,0.00030219,7]
[343669770,1732821039198,-238.33348,0.00030219,7]
[343669771,1732821039207,-238.33348,0.00030219,7]
[343669772,1732821039217,-238.33348,0.00030219,7]
[343669773,1732821039228,-238.33348,0.00030219,7]
[343669774,1732821039238,-238.33348,0.00030219,7]
[343669775,1732821039248,-238.33348,0.00030219,7]
[343669776,1732821039257,-238.33348,0.00030219,7]
[343669777,1732821039267,-238.33348,0.00030219,7]
[343669778,1732821039277,-238.33348,0.00030219,7]
[343669779,1732821039285,-238.33348,0.00030219,7]
[343669780,1732821039295,-238.33348,0.00030219,7]
[343669781,1732821039304,-238.33348,0.00030219,7]
[343669782,1732821039319,-238.33348,0.00030219,7]
[343669783,1732821039330,-238.33348,0.00030219,7]
[343669784,1732821039341,-238.333476,0.00030219,7]
[343669785,1732821039351,-151.0,0.00030219,7]
[343669786,1732821039360,-151.0,0.00030219,7]
[343669787,1732821039371,-151.0,0.00030219,7]
[343669788,1732821039381,-152.135456,0.00030219,7]
[343669789,1732821039390,-151.0,0.00030219,7]
[343669790,1732821039399,-154.271398,0.00030219,7]
[343669791,1732821039409,-155.730901,0.00030219,7]
[343669792,1732821039418,-177.654888,0.00030219,7]
[343669793,1732821039427,-177.654888,0.00030219,7]
[343669794,1732821039437,-177.654888,0.00030219,7]
[343669795,1732821039447,-177.654888,0.00030219,7]
[343669796,1732821039456,-177.654888,0.00030219,7]
[343669797,1732821039467,-177.654888,0.00030219,7]
[343669798,1732821039476,-177.654888,0.00030219,7]
[343669799,1732821039486,-177.654888,0.00030219,7]
[343669800,1732821039495,-177.654888,0.00030219,7]
[343669801,1732821039505,-177.654888,0.00030219,7]
[343669802,1732821039514,-177.654888,0.00030219,7]
[343669803,1732821039524,-177.654888,0.00030219,7]
[343669804,1732821039535,-177.654888,0.00030219,7]
[343669805,1732821039545,-177.654888,0.00030219,7]
[343669806,1732821039555,-177.654888,0.00030219,7]
[343669807,1732821039564,-177.654888,0.00030219,7]
[343669808,1732821039573,-177.654888,0.00030219,7]
[343669809,1732821039583,-177.654888,0.00030219,7]
[343669810,1732821039592,-177.654888,0.00030219,7]
[343669811,1732821039603,-177.654886,0.00030219,7]
[343669812,1732821039612,-151.0,0.00030219,7]
[343669813,1732821039624,-151.0,0.00030219,7]
[343669814,1732821039633,-151.0,0.00030219,7]
[343669815,1732821039642,-151.0,0.00030219,7]
[343669816,1732821039652,-151.0,0.00030219,7]
[343669817,1732821039661,-151.0,0.00030219,7]
[343669818,1732821039671,-151.0,0.00030219,7]
[343669819,1732821039680,-151.0,0.00030219,7]
[343669820,1732821039690,-151.0,0.00030219,7]
[343669821,1732821039699,-188.313866,0.00030219,7]
[343669822,1732821039709,-151.0,0.00030219,7]
[343669823,1732821039718,-151.0,0.00030219,7]
[343669824,1732821039728,-151.0,0.00030219,7]
[343669825,1732821039737,-151.0,0.00030219,7]
[343669826,1732821039746,-151.0,0.00030219,7]
[343669827,1732821039756,-151.0,0.00030219,7]
[343669828,1732821039766,-151.0,0.00030219,7]
[343669829,1732821039776,-151.0,0.00030219,7]
[343669830,1732821039786,-151.0,0.00030219,7]
[343669831,1732821039795,-151.0,0.00030219,7]
[343669832,1732821039804,-151.675132,0.00030219,7]
[343669833,1732821039814,-151.0,0.00030219,7]
[343669834,1732821039824,-151.0,0.00030219,7]
[343669835,1732821039834,-151.0,0.00030219,7]
[343669836,1732821039843,-151.0,0.00030219,7]
[343669837,1732821039854,-151.0,0.00030219,7]
[343669838,1732821039864,-269.053588,0.00030219,7]
[343669839,1732821039874,-151.635339,0.00030219,7]
[343669840,1732821039883,-266.4101,0.00030219,7]
[343669841,1732821039893,-153.679206,0.00030219,7]
[343669842,1732821039903,-153.679206,0.00030219,7]
[343669843,1732821039912,-153.679206,0.00030219,7]
[343669844,1732821039922,-153.679206,0.00030219,7]
[343669845,1732821039931,-153.679206,0.00030219,7]
[343669846,1732821039941,-153.679206,0.00030219,7]
[343669847,1732821039950,-153.679206,0.00030219,7]
[343669848,1732821039960,-153.679206,0.00030219,7]
[343669849,1732821039970,-153.679206,0.00030219,7]
[343669850,1732821039979,-153.679206,0.00030219,7]
[343669851,1732821039990,-153.679206,0.00030219,7]
[343669852,1732821040000,-153.679206,0.00030219,7]
[343669853,1732821040010,-153.679206,0.00030219,7]
[343669854,1732821040019,-153.679206,0.00030219,7]
[343669856,1732821040029,-153.679206,0.00030219,7]
[343669858,1732821040039,-153.679206,0.00030219,7]
[343669859,1732821040049,-153.679206,0.00030219,7]
[343669860,1732821040059,-153.679206,0.00030219,7]
[343669862,1732821040068,-153.679206,0.00030219,7]
[343669864,1732821040079,-153.679214,0.00030219,7]
[343669865,1732821040088,-151.0,0.00030219,7]
[343669866,1732821040098,-153.654015,0.00030219,7]
[343669867,1732821040107,-151.0,0.00030219,7]
[343669868,1732821040118,-151.0,0.00030219,7]
[343669869,1732821040128,-151.0,0.00030219,7]
[343669870,1732821040138,-151.0,0.00030219,7]
[343669871,1732821040147,-151.0,0.00030219,7]
[343669872,1732821040157,-151.0,0.00030219,7]
[343669873,1732821040167,-151.0,0.00030219,7]
[343669874,1732821040176,-151.0,0.00030219,7]
[343669875,1732821040185,-151.0,0.00030219,7]
[343669876,1732821040195,-151.0,0.00030219,7]
[343669877,1732821040205,-151.0,0.00030219,7]
[343669878,1732821040214,-151.0,0.00030219,7]
[343669879,1732821040224,-151.0,0.00030219,7]
[343669880,1732821040233,-151.0,0.00030219,7]
[343669881,1732821040242,-151.0,0.00030219,7]
[343669882,1732821040252,-151.0,0.00030219,7]
[343669883,1732821040261,-151.0,0.00030219,7]
[343669884,1732821040271,-151.0,0.00030219,7]
[343669885,1732821040281,-151.0,0.00030219,7]
[343669886,1732821040290,-151.0,0.00030219,7]
[343669887,1732821040300,-151.0,0.00030219,7]
[343669888,1732821040309,-151.0,0.00030219,7]
[343669890,1732821040319,-151.0,0.00030219,7]
[343669892,1732821040329,-151.0,0.00030219,7]
[343669894,1732821040339,-151.0,0.00030219,7]
[343669895,1732821040348,-151.0,0.00030219,7]
[343669896,1732821040358,-208.337304,0.00030219,7]
[343669897,1732821040369,-1290.86260711,0.00030219,2]
[343669898,1732821040379,-212.26232454,0.00030219,2]
[343669899,1732821040388,-42657.99240978,0.0003022,10]
[343669900,1732821040468,-908.62121778,0.00030067,10]
[343669901,1732821040478,-112535.92623103,0.0003022,10]
[343670150,1732821189264,1377.35,0.000247,2]
[343670151,1732821375411,1239.62,0.000247,2]
[343670152,1732821562290,1115.66,0.000247,2]
[343670153,1732821747920,1004.09,0.000247,2]
[343670154,1732821808275,164.509568,0.00013973,2]
[343670157,1732821935352,903.68,0.000247,2]
[343670158,1732821936142,-162.0,0.00027,2]
[343670159,1732821936165,-300.0,0.00027999,2]
[343670160,1732821936187,-300.0,0.00027999,2]
[343670161,1732821936208,-57.51614153,0.00028,30]
[343670162,1732822032145,-2202.1738182,0.0002749,11]
[343670163,1732822032166,-773.67,0.0002799,10]
[343670164,1732822032189,-500.0,0.00027999,3]
[343670165,1732822032209,-300.0,0.00027999,2]
[343670166,1732822032230,-300.0,0.00027999,2]
[343670167,1732822032250,-500.0,0.00027999,3]
[343670168,1732822032270,-500.0,0.00027999,3]
[343670169,1732822032293,-225.28,0.00027999,3]
[343670170,1732822032312,-99942.48385847,0.00028,30]
[343670171,1732822032334,-500.0,0.00028973,5]
[343670172,1732822032355,-619.05073513,0.00028973,5]
[343670173,1732822032376,-36.93647464,0.00028999,2]
[343670174,1732822042103,-727.31,0.0002899,10]
[343670175,1732822042126,-168.44686316,0.00028999,2]
[343670176,1732822042147,-500.0,0.00028999,2]
[343670177,1732822042171,-154.72014751,0.00028999,2]
[343670178,1732822042193,-1767.41565452,0.00029,30]
[343670179,1732822042221,-3363.05458471,0.00029,30]
[343670180,1732822099940,9292.45190176,0.0002,2]
[343670182,1732822120553,944.32717125,0.0002509,2]
[343670183,1732822121478,813.31,0.000247,2]
[343670184,1732822122200,133020.87927899,0.0001999,2]
[343670185,1732822122231,78561.19551529,0.0001999,2]
[343670189,1732822167096,-275.60387874,0.00024657,14]
[343670190,1732822167118,-361.97477656,0.00024657,14]
[343670191,1732822206439,518.52199423,0.00017583,2]
[343670192,1732822206461,278.05170782,0.00017583,2]
[343670193,1732822206491,284.96380666,0.00017583,2]
[343670213,1732822238540,-382.26086858,0.000276,2]
[343670214,1732822238551,-82.04392533,0.00027999,3]
[343670216,1732822238847,-69.84672785,0.00027999,3]
[343670217,1732822238858,-300.0,0.00027999,2]
[343670218,1732822238868,-300.0,0.00027999,2]
[343670219,1732822238878,-11718.85750546,0.00028,30]
[343670248,1732822243458,-38197.99441798,0.00028,30]
[343670250,1732822243529,-313.26257089,0.00028,30]
[343670251,1732822243602,-5034.62534544,0.00028,30]
[343670258,1732822307907,731.98,0.000247,2]
[343670260,1732822677217,164.343332,0.00013973,2]
[343670261,1732822765294,1169.27083333,0.00022,2]
[343670262,1732823142132,-325.42596189,0.00024453,2]
[343670264,1732823192124,-30.07403811,0.00024453,2]
[343670265,1732823192152,-128.5205359,0.000247,2]
[343670266,1732823234122,-645.93,0.000247,2]
[343670267,1732823234144,-208.3685558,0.00026484,2]
[343670268,1732823234167,-1169.27083333,0.000268,2]
[343670269,1732823234190,-638.29,0.00027999,3]
[343670270,1732823234212,-300.0,0.00027999,2]
[343670271,1732823234235,-300.0,0.00027999,2]
[343670272,1732823234260,-1252.88953155,0.00028,30]
[343670273,1732823237095,-4182.70115616,0.00028,30]
[343670274,1732823243157,-13377.18696165,0.00028,30]
[343670275,1732823333851,164.336625,0.00013973,2]
[343670276,1732823385323,1168.54045531,0.000265,2]
[343670277,1732823385345,0.73037802,0.000265,2]
[343670278,1732823414100,581.34,0.000247,2]
[343670286,1732823438615,-300.0,0.00027497,2]
[343670287,1732823438625,-300.0,0.00027497,2]
[343670288,1732823438635,-1812.24843362,0.00027498,2]
[343670309,1732823440665,-2123.94356558,0.00027498,2]
[343670310,1732823440676,-251.633215,0.00027498,2]
[343670311,1732823440688,-500.0,0.00027999,3]
[343670312,1732823440701,-8615.94776327,0.00028,30]
[343670313,1732823440711,-606.09,0.0002899,10]
[343670314,1732823440721,-505.08,0.0002899,10]
[343670315,1732823440731,-500.0,0.00028999,2]
[343670316,1732823440741,-209.84982781,0.00028999,2]
[343670317,1732823440750,-500.0,0.00028999,3]
[343670318,1732823440764,-500.0,0.00028999,3]
[343670319,1732823440773,-425.54329515,0.00028999,3]
[343670320,1732823440783,-500.0,0.00028999,2]
[343670321,1732823440792,-500.0,0.00028999,3]
[343670322,1732823440802,-500.0,0.00028999,3]
[343670323,1732823440811,-500.0,0.00028999,3]
[343670324,1732823440821,-500.0,0.00028999,3]
[343670325,1732823440831,-164.61,0.00028999,3]
[343670326,1732823440840,-70479.17410334,0.00029,30]
[343670352,1732823446183,-11567.95044697,0.00029,30]
[343670355,1732823446195,-10004.94116516,0.00029,30]
[343670361,1732823446244,-17.62161933,0.00029,30]
[343670384,1732823446371,-2826.27164204,0.00029,30]
[343670386,1732823446381,-164.336625,0.00029349,2]
[343670387,1732823446391,-160.0,0.00029509,3]
[343670389,1732823446401,-420.0,0.00029712,2]
[343670390,1732823446412,-167.616,0.0003,2]
[343670391,1732823446422,-95.87097569,0.0003,2]
[343670392,1732823449215,563.9010556,0.00026,5]
[343670393,1732823449237,2301.08267315,0.00026,5]
[343670405,1732824065135,164.639767,0.00013973,2]
[343670407,1732824334195,-462.81262688,0.000246,2]
[343670409,1732824426130,-1.49216512,0.000246,2]
[343670410,1732824426154,-849.84,0.000247,2]
[343670411,1732824426177,-151.410016,0.00025138,2]
[343670412,1732824426200,-156.307425,0.00025138,2]
[343670413,1732824426222,-156.307425,0.00025452,2]
[343670414,1732824426247,-156.307425,0.00025766,2]
[343670415,1732824426273,-151.410016,0.00025766,2]
[343670416,1732824426314,-2461.5852746,0.00026,5]
[343670417,1732824426342,-156.307425,0.0002608,2]
[343670418,1732824426370,-84.33268289,0.00026142,2]
[343670419,1732824441105,-126.58131711,0.00026142,2]
[343670420,1732824441126,-156.307425,0.00026395,2]
[343670421,1732824441147,-151.410016,0.00026395,2]
[343670422,1732824441170,-478.6136753,0.00026746,11]
[343670423,1732824441190,-231.9287021,0.00026857,2]
[343670424,1732824441210,-165.109861,0.00027834,2]
[343670425,1732824441231,-327.23763201,0.00028873,5]
[343670426,1732824441252,-173.19415404,0.00028888,2]
[343670427,1732824441274,-300.0,0.00028896,2]
[343670428,1732824441294,-625.0,0.00028896,2]
[343670429,1732824441315,-500.0,0.00028899,2]
[343670430,1732824441336,-192.3882197,0.00028899,2]
[343670431,1732824441359,-500.0,0.00028899,2]
[343670432,1732824441384,-258.41596238,0.000289,2]
[343670433,1732824441406,-156.82174134,0.000289,2]
[343670435,1732824568115,-764.86,0.000247,2]
[343670446,1732824631872,-151.54488482,0.00028898,2]
[343670447,1732824631881,-300.0,0.00028898,2]
[343670448,1732824631891,-109.91808322,0.00028898,2]
[343670449,1732824631921,-190.08191678,0.00028898,2]
[343670450,1732824631931,-500.0,0.00028899,3]
[343670451,1732824631940,-500.0,0.00028899,3]
[343670452,1732824631949,-500.0,0.00028899,3]
[343670453,1732824631960,-500.0,0.00028899,3]
[343670454,1732824631969,-500.0,0.00028899,2]
[343670455,1732824631979,-177.72326603,0.00028899,3]
[343670456,1732824631989,-172.27730826,0.000289,2]
[343670457,1732824631998,-90657.68286234,0.000289,2]
[343670458,1732824632007,-151.54488477,0.00029072,2]
[343670459,1732824632016,-151.54488477,0.00029245,2]
[343670460,1732824632026,-164.639767,0.00029349,2]
[343670461,1732824632036,-151.54488477,0.00029419,2]
[343670462,1732824632045,-151.54488477,0.00029593,2]
[343670463,1732824632056,-561.46296804,0.00029758,2]
[343670464,1732824632065,-151.54488477,0.00029767,2]
[343670465,1732824632081,-151.54488477,0.0002994,2]
[343670466,1732824632092,-174.0,0.0003,2]
[343670467,1732824632104,-609.74,0.00030079,3]
[343670468,1732824632115,-420.9,0.0003009,10]
[343670469,1732824632126,-346.33,0.000301,31]
[343670470,1732824632137,-346.33,0.000301,31]
[343670471,1732824632150,-346.33,0.000301,31]
[343670472,1732824632161,-346.33,0.000301,31]
[343670473,1732824632171,-346.33,0.000301,31]
[343670474,1732824632180,-346.33,0.000301,31]
[343670475,1732824632190,-346.33,0.000301,31]
[343670476,1732824632202,-346.33,0.000301,31]
[343670477,1732824632214,-346.33,0.000301,31]
[343670478,1732824632225,-346.33,0.000301,31]
[343670479,1732824632236,-346.33,0.000301,31]
[343670480,1732824632246,-346.33,0.000301,31]
[343670481,1732824632257,-1059.22437537,0.00030113,2]
[343670482,1732824632266,-212.26232453,0.00030113,2]
[343670483,1732824632275,-42038.86679084,0.00030113,2]
[343670484,1732824632286,-666.0,0.00030114,2]
[343670485,1732824632295,-868.67825735,0.00030114,2]
[343670486,1732824632304,-170.63557011,0.00030114,2]
[343670487,1732824632314,-151.54488477,0.00030114,2]
[343670488,1732824632323,-286.53309475,0.00030137,2]
[343670489,1732824632332,-1487.720775,0.00030137,120]
[343670490,1732824632342,-162.9,0.000302,2]
[343670491,1732824632351,-189.88953129,0.00030213,2]
[343670492,1732824632361,-181.28258714,0.00030213,2]
[343670493,1732824632370,-187.73730221,0.00030213,2]
[343670494,1732824632380,-500.0,0.00030213,2]
[343670495,1732824632389,-158.67775642,0.00030213,2]
[343670496,1732824632398,-151.0,0.00030214,7]
[343670497,1732824632407,-151.0,0.00030214,7]
[343670498,1732824632417,-256.254406,0.00030214,7]
[343670499,1732824632426,-151.0,0.00030214,7]
[343670500,1732824632436,-151.580726,0.00030214,7]
[343670501,1732824632446,-151.0,0.00030214,7]
[343670502,1732824632456,-154.515049,0.00030214,7]
[343670503,1732824632465,-151.0,0.00030214,7]
[343670504,1732824632475,-151.0,0.00030214,7]
[343670505,1732824632484,-151.0,0.00030214,7]
[343670506,1732824632494,-151.0,0.00030214,7]
[343670507,1732824632504,-151.0,0.00030214,7]
[343670508,1732824632513,-151.0,0.00030214,7]
[343670509,1732824632522,-151.0,0.00030214,7]
[343670510,1732824632532,-151.0,0.00030214,7]
[343670511,1732824632542,-151.0,0.00030214,7]
[343670512,1732824632553,-151.0,0.00030214,7]
[343670513,1732824632562,-151.0,0.00030214,7]
[343670514,1732824632571,-151.0,0.00030214,7]
[343670515,1732824632581,-151.0,0.00030214,7]
[343670516,1732824632590,-257.20088,0.00030214,7]
[343670517,1732824632599,-151.0,0.00030214,7]
[343670518,1732824632609,-151.0,0.00030214,7]
[343670519,1732824632618,-151.0,0.00030214,7]
[343670520,1732824632627,-256.438226,0.00030214,7]
[343670521,1732824632636,-328.303956,0.00030214,7]
[343670522,1732824632645,-328.303956,0.00030214,7]
[343670523,1732824632654,-328.303956,0.00030214,7]
[343670524,1732824632664,-328.303956,0.00030214,7]
[343670525,1732824632673,-328.303956,0.00030214,7]
[343670526,1732824632682,-328.303956,0.00030214,7]
[343670527,1732824632691,-328.303956,0.00030214,7]
[343670528,1732824632700,-328.303956,0.00030214,7]
[343670529,1732824632710,-328.303956,0.00030214,7]
[343670530,1732824632719,-328.303956,0.00030214,7]
[343670531,1732824632728,-328.303956,0.00030214,7]
[343670532,1732824632737,-328.303956,0.00030214,7]
[343670533,1732824632747,-328.303956,0.00030214,7]
[343670534,1732824632756,-328.303956,0.00030214,7]
[343670535,1732824632766,-328.303956,0.00030214,7]
[343670536,1732824632775,-328.303956,0.00030214,7]
[343670537,1732824632785,-328.303956,0.00030214,7]
[343670538,1732824632794,-328.303956,0.00030214,7]
[343670539,1732824632804,-328.303956,0.00030214,7]
[343670540,1732824632813,-328.303966,0.00030214,7]
[343670541,1732824632822,-151.0,0.00030214,7]
[343670542,1732824632832,-151.408098,0.00030214,7]
[343670543,1732824632841,-151.0,0.00030214,7]
[343670544,1732824632850,-151.0,0.00030214,7]
[343670545,1732824632860,-151.0,0.00030214,7]
[343670546,1732824632869,-151.0,0.00030214,7]
[343670547,1732824632878,-151.0,0.00030214,7]
[343670548,1732824632888,-151.0,0.00030214,7]
[343670549,1732824632898,-151.0,0.00030214,7]
[343670550,1732824632907,-151.0,0.00030214,7]
[343670551,1732824633025,-151.0,0.00030214,7]
[343670552,1732824633065,-151.0,0.00030214,7]
[343670553,1732824633079,-152.302487,0.00030214,7]
[343670554,1732824633089,-151.0,0.00030214,7]
[343670555,1732824633099,-151.0,0.00030214,7]
[343670556,1732824633110,-151.0,0.00030214,7]
[343670557,1732824633120,-832015.1005608,0.00030214,10]
[343670558,1732824633129,-232.9698068,0.00030214,10]
[343670559,1732824633139,-200.0,0.00030214,10]
[343670560,1732824633150,-4361.8068911,0.00030214,2]
[343670561,1732824633160,-1169393.35390402,0.00030214,10]
[343670562,1732824633170,-403404.76048986,0.00030214,10]
[343670563,1732824633179,-500.0,0.00030214,2]
[343670564,1732824633189,-500.0,0.00030214,3]
[343670565,1732824633199,-500.0,0.00030214,5]
[343670566,1732824633209,-276787.3710554,0.00030214,10]
[343670567,1732824633220,-434325.42159579,0.00030214,10]
[343670568,1732824633230,-13219.67145845,0.00030214,2]
[343670569,1732824633240,-2116691.56714774,0.00030214,10]
[343670584,1732824639835,-324363.80638346,0.00030214,10]
[343670606,1732824642899,-46.96087088,0.00030204,10]
[343670614,1732824645734,-23.38717211,0.00030204,10]
[343670616,1732824690325,164.985486,0.00013973,2]
[343670617,1732824708749,688.37,0.000247,2]
[343670619,1732824847518,-209.73695,0.00031,120]
[343670620,1732824847564,-1487.720775,0.00031,120]
[343670621,1732824847745,-1978.21265269,0.00031,120]
[343670622,1732824847787,-23507.25722289,0.00031,120]
[343670623,1732824847828,-500.0,0.00032,120]
[343670624,1732824847858,-151.0,0.00033753,120]
[343670625,1732824847885,-349.0,0.00034,120]
[343670626,1732824847929,-151.0,0.00034,120]
[343670627,1732824847957,-80.46811341,0.00034274,120]
[343670628,1732825348668,164.243495,0.00013973,2]
[343670629,1732825387945,1115.790581,0.00030137,120]
[343670631,1732825534134,-619.54,0.000247,2]
[343670632,1732825534157,-549.56791126,0.00026698,2]
[343670634,1732825639133,-557.58,0.000247,2]
[343670635,1732825639157,-162.46408874,0.00026698,2]
[343670636,1732825639183,-950.831,0.00026698,2]
[343670637,1732825639205,-500.0,0.00028899,3]
[343670638,1732825639227,-554.87,0.00028899,3]
[343670639,1732825639248,-302.69733596,0.00029986,8]
[343670640,1732825639269,-162.0,0.0003,2]
[343670641,1732825639290,-400.0,0.00030099,2]
[343670642,1732825639314,-304.79,0.000301,31]
[343670643,1732825639340,-304.79,0.000301,31]
[343670644,1732825639364,-304.79,0.000301,31]
[343670645,1732825639390,-27.89921213,0.000301,31]
[343670646,1732825652122,-276.89078787,0.000301,31]
[343670647,1732825652147,-304.79,0.000301,31]
[343670648,1732825652174,-304.79,0.000301,31]
[343670649,1732825652198,-304.79,0.000301,31]
[343670650,1732825652221,-304.79,0.000301,31]
[343670651,1732825652244,-304.79,0.000301,31]
[343670652,1732825652268,-304.79,0.000301,31]
[343670653,1732825652291,-304.79,0.000301,31]
[343670654,1732825652313,-304.79,0.000301,31]
[343670655,1732825652337,-1374.99000001,0.00030114,2]
[343670656,1732825652359,-172.27730826,0.00030137,7]
[343670657,1732825652382,-105.53828799,0.00030137,7]
[343670658,1732825691899,2456.52175885,0.0002,2]
[343670667,1732825805016,796.57370205,0.0001789,2]
[343670671,1732825817222,501.82,0.000247,2]
[343670688,1732825839961,-291.0,0.00028999,2]
[343670689,1732825839971,-300.0,0.00028999,2]
[343670690,1732825839980,-1250.22,0.00029,30]
[343670700,1732825842923,-13590.26224538,0.00029,30]
[343670701,1732825842934,-160.0,0.00029697,3]
[343670702,1732825842944,-275.60387874,0.0003,14]
[343670703,1732825842953,-361.97477656,0.0003,14]
[343670704,1732825842962,-291.0,0.00030202,2]
[343670705,1732825842972,-244.94,0.00030202,10]
[343670706,1732825842982,-419.42,0.00030202,10]
[343670707,1732825842992,-554.27181792,0.00030211,2]
[343670708,1732825843002,-500.0,0.00030211,2]
[343670709,1732825843012,-391.01962047,0.00030211,2]
[343670710,1732825843022,-247.91285282,0.00030211,2]
[343670711,1732825843031,-209.84982781,0.00030211,2]
[343670713,1732825843040,-168.44686316,0.00030211,2]
[343670714,1732825843050,-38.26547538,0.00030211,2]
[343670715,1732825843148,-461.73452462,0.00030211,2]